bitfinex/quotes_SOLUSD_20260211
["timestamp","ask_amount","ask_price","bid_price","bid_amount"]
[1770810681344,5.13032502,81.466,81.433,0.5]
[1770810681544,3.3886088,81.46,81.433,0.5]
[1770810681941,3.3886088,81.44,81.405,0.5]
[1770810682157,5.13032502,81.456,81.396,0.5]
[1770810682461,28.56,81.459,81.392,12.28607274]
[1770810682462,3.3886088,81.42,81.392,12.28607274]
[1770810682665,28.56,81.419,81.392,12.28607274]
[1770810683168,5.13032502,81.416,81.371,0.5]
[1770810683345,9.04525052,81.4,81.381,0.5]
[1770810683946,9.04525052,81.4,81.371,0.5]
[1770810684158,28.56,81.399,81.371,0.5]
[1770810684562,12.2851632,81.399,81.371,0.5]
[1770810684759,28.56,81.398,81.361,0.5]
[1770810685644,9.04951461,81.39,81.361,0.5]
[1770810686373,9.04951461,81.39,81.365,0.5]
[1770810687262,9.04951461,81.39,81.367,0.5]
[1770810687463,9.04951461,81.39,81.368,12.78984367]
[1770810687671,28.56,81.398,81.369,0.5]
[1770810688166,9.04951461,81.39,81.369,0.5]
[1770810689353,28.56,81.389,81.371,0.5]
[1770810691372,9.04951461,81.4,81.371,0.5]
[1770810691674,28.58,81.388,81.371,0.5]
[1770810691849,12.2851632,81.399,81.371,0.5]
[1770810692050,28.6,81.398,81.371,0.5]
[1770810692573,28.6,81.397,81.371,0.5]
[1770810693153,28.62,81.396,81.371,0.5]
[1770810694051,12.2851632,81.399,81.371,0.5]
[1770810694255,28.62,81.398,81.371,0.5]
[1770810695265,28.64,81.397,81.371,0.5]
[1770810695666,12.28093875,81.427,81.381,0.5]
[1770810695875,12.28093875,81.427,81.391,0.5]
[1770810695876,9.04951461,81.42,81.391,0.5]
[1770810697960,41.00214544,81.419,81.391,0.5]
[1770810700074,5.13032502,81.424,81.393,0.5]
[1770810700262,28.8,81.423,81.393,0.5]
[1770810700463,9.04951461,81.41,81.387,12.28685095]
[1770810700675,9.04951461,81.41,81.388,0.5]
[1770810701389,5.13032502,81.424,81.392,0.5]
[1770810701784,9.04951461,81.42,81.392,0.5]
[1770810701978,12.28229629,81.418,81.392,0.5]
[1770810702181,5.13032502,81.415,81.362,0.5]
[1770810702422,9.04951461,81.38,81.339,0.5]
[1770810702682,42.98803703,81.418,81.372,0.45158229]
[1770810702683,27.36,81.379,81.372,0.45158229]
[1770810702885,28.38,81.378,81.37,9.04951461]
[1770810703191,28.38,81.378,81.338,92.20782413]
[1770810703192,28.88,81.377,81.36,9.04951461]
[1770810703777,28.88,81.376,81.36,9.04951461]
[1770810703979,28.88,81.375,81.361,12.29090104]
[1770810704178,28.88,81.374,81.361,12.29090104]
[1770810704687,28.88,81.377,81.361,12.29090104]
[1770810706185,0.5,81.401,81.361,12.29090104]
[1770810706389,28.88,81.4,81.361,73.39090104]
[1770810706699,28.86,81.399,81.37,9.04951461]
[1770810706895,28.86,81.398,81.361,73.39090104]
[1770810707097,0.5,81.397,81.361,73.39090104]
[1770810707600,0.5,81.397,81.361,12.29090104]
[1770810709291,0.5,81.395,81.351,43.02344162]
[1770810709672,0.5,81.379,81.346,12.29312093]
[1770810709903,0.5,81.369,81.334,12.29483205]
[1770810710098,5.13032502,81.39,81.31,9.04951461]
[1770810710099,0.5,81.359,81.31,9.04951461]
[1770810710297,0.5,81.349,81.303,30.74904843]
[1770810710472,0.5,81.347,81.303,30.74904843]
[1770810711210,12.29302351,81.347,81.303,30.74904843]
[1770810711391,0.5,81.346,81.303,30.74904843]
[1770810712678,0.5,81.344,81.303,30.74904843]
[1770810713085,12.7934697,81.344,81.303,30.74904843]
[1770810713498,0.5,81.343,81.303,30.74904843]
[1770810715492,0.5,81.343,81.305,43.04778303]
[1770810716897,28.88,81.342,81.311,12.298459]
[1770810717104,28.88,81.342,81.312,61.1]
[1770810717795,29.38,81.342,81.312,61.1]
[1770810717998,28.88,81.342,81.312,61.1]
[1770810719208,12.29392311,81.341,81.313,12.2981565]
[1770810719384,9.06027991,81.32,81.299,59.10938477]
[1770810719590,0.48760905,81.318,81.3,59.10938477]
[1770810719910,28.88,81.319,81.3,59.10938477]
[1770810719911,28.38,81.321,81.314,0.49637008]
[1770810720109,28.9,81.32,81.314,0.49637008]
[1770810720401,0.48760905,81.34,81.314,0.49637008]
[1770810720607,0.5,81.338,81.314,59.60575485]
[1770810721107,0.5,81.338,81.314,59.10938477]
[1770810722516,28.94,81.337,81.315,71.40723879]
[1770810722693,28.94,81.336,81.315,102.15187385]
[1770810727090,0.5,81.349,81.34,30.16938477]
[1770810727296,28.96,81.335,81.323,12.2965761]
[1770810729809,28.96,81.335,81.292,103.9]
[1770810729810,0.5,81.394,81.324,30.16938477]
[1770810730013,0.5,81.375,81.33,9.06027991]
[1770810730196,0.5,81.373,81.331,30.16938477]
[1770810730718,29.0,81.382,81.36,9.06027991]
[1770810730891,29.0,81.382,81.34,9.06027991]
[1770810730892,0.5,81.381,81.34,9.06027991]
[1770810731094,0.5,81.379,81.34,9.06027991]
[1770810731307,0.5,81.377,81.34,9.06027991]
[1770810731611,0.5,81.377,81.336,26.56]
[1770810731792,0.5,81.375,81.34,9.06027991]
[1770810732412,0.5,81.375,81.337,12.2945277]
[1770810732595,0.5,81.369,81.337,12.2945277]
[1770810732898,0.5,81.359,81.315,26.56]
[1770810733097,0.5,81.349,81.31,9.06027991]
[1770810733299,29.0,81.354,81.336,12.29462292]
[1770810733519,0.5,81.353,81.331,12.29535301]
[1770810733820,0.5,81.349,81.316,12.29770278]
[1770810735332,0.5,81.339,81.311,12.29837686]
[1770810736999,0.5,81.339,81.295,30.75202304]
[1770810737395,0.5,81.368,81.31,9.06027991]
[1770810737622,5.13032502,81.369,81.3,9.06027991]
[1770810737623,0.5,81.349,81.3,9.06027991]
[1770810738306,9.06027991,81.34,81.298,26.58]
[1770810738512,0.5,81.339,81.298,26.58]
[1770810739324,0.5,81.339,81.295,57.35202304]
[1770810739920,0.5,81.309,81.282,12.3028047]
[1770810740101,9.06027991,81.3,81.282,12.3028047]
[1770810740301,0.5,81.303,81.282,12.3028047]
[1770810741408,29.04,81.302,81.282,12.3028047]
[1770810742605,29.04,81.301,81.282,12.3028047]
[1770810743424,0.5,81.299,81.28,12.50304481]
[1770810744996,0.5,81.299,81.282,12.30284687]
[1770810745208,5.13032502,81.33,81.282,12.30284687]
[1770810745209,0.5,81.319,81.282,12.30284687]
[1770810745413,0.5,81.317,81.282,12.30284687]
[1770810745603,0.5,81.317,81.282,43.05996406]
[1770810746213,0.5,81.309,81.282,12.30284687]
[1770810746530,29.06,81.318,81.281,30.16938477]
[1770810746531,0.5,81.299,81.281,30.16938477]
[1770810746841,0.5,81.297,81.281,42.47237932]
[1770810747528,29.58,81.297,81.281,42.47237932]
[1770810747745,0.5,81.296,81.281,30.16938477]
[1770810748113,0.5,81.296,81.281,42.47223516]
[1770810749232,0.5,81.302,81.281,42.47223516]
[1770810749539,0.5,81.299,81.281,42.47223516]
[1770810750625,0.5,81.299,81.282,30.16938477]
[1770810750837,29.12,81.298,81.282,30.16938477]
[1770810751631,29.62,81.298,81.282,30.16938477]
[1770810751823,29.62,81.298,81.283,12.30269552]
[1770810754215,0.5,81.297,81.283,12.30269552]
[1770810756220,0.5,81.319,81.283,12.30269552]
[1770810756539,0.5,81.309,81.284,30.16938477]
[1770810756732,0.5,81.307,81.284,30.16938477]
[1770810758342,29.22,81.306,81.284,30.16938477]
[1770810758547,0.5,81.305,81.285,12.30239281]
[1770810758838,29.72,81.304,81.284,30.16938477]
[1770810760026,29.72,81.304,81.284,42.4718823]
[1770810760336,0.5,81.303,81.284,42.4718823]
[1770810760536,29.24,81.302,81.284,42.4718823]
[1770810760736,0.5,81.303,81.284,42.4718823]
[1770810761041,29.24,81.302,81.284,42.4718823]
[1770810761240,29.24,81.301,81.284,42.4718823]
[1770810761821,0.5,81.303,81.284,42.4718823]
[1770810762038,29.26,81.302,81.284,42.4718823]
[1770810762322,29.26,81.302,81.285,30.16938477]
[1770810762643,0.5,81.303,81.285,30.16938477]
[1770810762818,29.26,81.302,81.285,30.16938477]
[1770810763022,0.5,81.301,81.285,30.16938477]
[1770810763843,29.28,81.3,81.285,30.16938477]
[1770810764240,29.28,81.3,81.286,12.30224146]
[1770810765242,29.28,81.312,81.286,43.05784513]
[1770810765449,29.28,81.312,81.287,27.08]
[1770810766328,0.5,81.311,81.286,12.30224146]
[1770810766526,29.3,81.31,81.286,12.30224146]
[1770810766742,0.5,81.309,81.286,12.30224146]
[1770810767044,29.3,81.308,81.286,12.30224146]
[1770810767232,0.5,81.307,81.286,12.30224146]
[1770810767938,0.5,81.307,81.285,30.16938477]
[1770810768246,29.32,81.306,81.286,30.16938477]
[1770810768551,12.29906087,81.308,81.286,30.16938477]
[1770810768552,0.5,81.305,81.286,30.16938477]
[1770810768849,29.82,81.304,81.286,30.16938477]
[1770810769050,29.82,81.303,81.286,30.16938477]
[1770810769756,29.34,81.302,81.286,30.16938477]
[1770810770250,29.84,81.302,81.286,30.16938477]
[1770810770443,29.34,81.302,81.286,30.16938477]
[1770810770753,29.36,81.306,81.287,42.47147489]
[1770810771442,30.73876995,81.331,81.287,42.47147489]
[1770810771443,0.5,81.319,81.288,57.40938477]
[1770810771644,0.5,81.329,81.29,3.38570117]
[1770810771951,0.5,81.329,81.291,30.16938477]
[1770810772341,0.5,81.329,81.292,27.26]
[1770810772951,0.5,81.329,81.293,43.05413749]
[1770810773134,29.86,81.335,81.293,43.05413749]
[1770810773457,0.5,81.334,81.294,27.28]
[1770810774455,0.5,81.334,81.295,43.05307829]
[1770810774950,0.5,81.334,81.3,3.38570117]
[1770810776261,0.5,81.334,81.301,43.04990098]
[1770810776751,0.5,81.334,81.294,27.28]
[1770810776752,0.5,81.329,81.294,27.28]
[1770810776955,0.5,81.329,81.301,12.29997171]
[1770810777857,0.5,81.358,81.31,3.38570117]
[1770810778039,0.5,81.358,81.301,43.04990098]
[1770810778234,3.38570117,81.35,81.311,43.0446065]
[1770810778436,0.5,81.349,81.312,27.4]
[1770810780659,0.5,81.349,81.313,73.21293253]
[1770810782438,0.5,81.349,81.32,3.38570117]
[1770810782838,0.5,81.349,81.313,73.21293253]
[1770810783664,0.5,81.36,81.32,3.38570117]
[1770810783848,359.52008893,81.434,81.33,3.38570117]
[1770810783849,0.5,81.379,81.33,3.38570117]
[1770810784046,0.5,81.369,81.33,33.55508594]
[1770810784250,5.13032502,81.394,81.33,30.16938477]
[1770810784251,0.5,81.359,81.33,30.16938477]
[1770810784446,0.5,81.359,81.321,27.6]
[1770810784447,0.5,81.359,81.321,57.76938477]
[1770810784847,0.5,81.359,81.322,43.03878408]
[1770810785764,0.5,81.359,81.323,30.16938477]
[1770810787263,0.5,81.365,81.33,3.38570117]
[1770810789367,0.5,81.394,81.331,132.25119498]
[1770810789571,12.2857806,81.395,81.34,3.38570117]
[1770810789572,0.5,81.379,81.34,3.38570117]
[1770810789753,0.5,81.399,81.36,3.38570117]
[1770810790067,0.5,81.399,81.361,27.76]
[1770810790266,12.2851632,81.399,81.362,27.76]
[1770810790569,0.5,81.398,81.362,27.76]
[1770810791151,0.5,81.398,81.331,252.05641144]
[1770810791365,0.5,81.409,81.37,3.38570117]
[1770810791660,0.5,81.399,81.371,27.76]
[1770810794548,0.5,81.399,81.372,12.28923954]
[1770810795573,0.5,81.399,81.373,27.74]
[1770810796354,0.5,81.399,81.372,12.28923954]
[1770810796649,0.5,81.399,81.373,27.76]
[1770810797274,0.5,81.397,81.373,27.76]
[1770810798769,0.5,81.397,81.374,12.28893749]
[1770810799171,0.5,81.397,81.373,27.76]
[1770810802987,0.5,81.395,81.369,27.82]
[1770810803757,12.285616,81.396,81.283,10.06324152]
[1770810803758,0.5,81.389,81.37,30.16938477]
[1770810804077,0.5,81.389,81.356,27.82]
[1770810804078,0.5,81.389,81.371,28.16938477]
[1770810804282,0.5,81.389,81.356,27.82]
[1770810804483,3.38570117,81.38,81.356,27.82]
[1770810804993,12.28818245,81.379,81.356,27.82]
[1770810805195,12.28818245,81.379,81.356,28.32]
[1770810805381,12.28818245,81.379,81.357,0.5]
[1770810805883,12.28818245,81.379,81.346,40.46248476]
[1770810806069,3.38570117,81.37,81.346,0.5]
[1770810806576,3.38570117,81.37,81.344,27.86]
[1770810807281,12.28969263,81.369,81.345,0.5]
[1770810807488,12.28833345,81.378,81.346,0.5]
[1770810809185,29.2,81.387,81.346,0.5]
[1770810809186,12.28731383,81.385,81.346,0.5]
[1770810809360,3.38023014,81.39,81.348,0.5]
[1770810810196,3.38023014,81.39,81.351,0.5]
[1770810811263,3.38023014,81.39,81.352,27.98]
[1770810811467,12.28667264,81.389,81.354,0.5]
[1770810812260,12.28546506,81.397,81.361,0.5]
[1770810813970,12.28546506,81.397,81.353,43.02238392]
[1770810813971,12.28546506,81.397,81.362,12.29074998]
[1770810814167,12.28546506,81.397,81.363,28.66938477]
[1770810814372,12.28546506,81.397,81.364,0.5]
[1770810814980,3.38023014,81.39,81.363,28.16938477]
[1770810815187,3.38023014,81.39,81.364,28.04]
[1770810816393,12.28667264,81.389,81.364,28.04]
[1770810817191,12.28667264,81.389,81.365,0.5]
[1770810817372,3.38023014,81.39,81.365,0.5]
[1770810818086,3.38023014,81.39,81.367,0.5]
[1770810818678,12.28667264,81.389,81.367,0.5]
[1770810819572,30.71290802,81.399,81.367,0.5]
[1770810819886,3.38023014,81.39,81.367,0.5]
[1770810820593,3.38023014,81.4,81.369,0.5]
[1770810821897,12.2851632,81.399,81.37,12.2895416]
[1770810822196,12.2851632,81.399,81.371,0.5]
[1770810823767,12.2851632,81.399,81.37,12.2895416]
[1770810823768,12.2851632,81.399,81.373,0.5]
[1770810826191,3.38023014,81.39,81.374,28.16938477]
[1770810826994,42.99807122,81.399,81.35,3.38023014]
[1770810826995,3.38023014,81.38,81.35,0.5]
[1770810827202,3.38023014,81.37,81.339,0.5]
[1770810828289,12.28969263,81.369,81.34,0.5]
[1770810828477,12.28969263,81.369,81.327,30.74003259]
[1770810828478,3.38023014,81.35,81.321,61.1]
[1770810828694,3.38023014,81.34,81.318,0.5]
[1770810828903,3.38023014,81.35,81.318,0.5]
[1770810829890,3.38023014,81.34,81.318,0.5]
[1770810830290,12.2942254,81.339,81.318,0.5]
[1770810830694,12.2942254,81.339,81.295,30.7518956]
[1770810830695,3.38023014,81.33,81.292,0.5]
[1770810830998,3.38023014,81.32,81.299,0.5]
[1770810832103,43.0297889,81.339,81.302,0.5]
[1770810832104,3.38023014,81.33,81.302,0.5]
[1770810832885,12.29460427,81.337,81.304,0.5]
[1770810835801,12.29460427,81.337,81.296,30.75167332]
[1770810835802,12.29460427,81.337,81.306,0.5]
[1770810836008,3.38023014,81.33,81.306,0.5]
[1770810836807,12.29460427,81.337,81.293,28.5]
[1770810836808,3.38023014,81.32,81.293,28.5]
[1770810837013,3.38023014,81.31,81.294,0.5]
[1770810837207,3.38023014,81.32,81.294,0.5]
[1770810837408,3.38449949,81.33,81.3,12.29998714]
[1770810837619,3.38449949,81.33,81.301,0.5]
[1770810838301,12.29573706,81.329,81.301,0.5]
[1770810840712,3.38449949,81.34,81.303,0.5]
[1770810840915,12.2927141,81.349,81.305,0.5]
[1770810841096,3.38449949,81.34,81.305,0.5]
[1770810841295,3.38449949,81.33,81.305,0.5]
[1770810841501,3.38449949,81.34,81.305,0.5]
[1770810841798,3.38449949,81.34,81.306,28.8]
[1770810841991,3.38449949,81.34,81.307,0.5]
[1770810842193,3.38449949,81.33,81.307,0.5]
[1770810842419,3.38449949,81.32,81.308,28.82]
[1770810842714,3.38449949,81.33,81.31,0.5]
[1770810842915,12.29609586,81.327,81.31,0.5]
[1770810845419,5.13032502,81.356,81.31,0.5]
[1770810845593,5.13032502,81.356,81.312,0.5]
[1770810845594,3.38449949,81.33,81.312,0.5]
[1770810845793,3.38449949,81.33,81.313,61.6]
[1770810845994,3.38449949,81.33,81.314,0.5]
[1770810848220,12.29573706,81.329,81.314,0.5]
[1770810849801,12.29573706,81.329,81.28,0.7]
[1770810850002,3.38449949,81.29,81.281,0.5]
[1770810850202,3.38449949,81.3,81.281,0.5]
[1770810850500,3.38449949,81.31,81.283,0.5]
[1770810850810,43.03507972,81.329,81.291,0.5]
[1770810851010,12.29573706,81.329,81.291,0.5]
[1770810851205,12.29573706,81.329,81.292,29.12]
[1770810851526,12.29573706,81.329,81.293,0.5]
[1770810852025,12.29573706,81.329,81.295,0.5]
[1770810852324,12.29573706,81.329,81.297,0.5]
[1770810856209,12.29573706,81.329,81.298,0.5]
[1770810858329,12.29573706,81.329,81.301,0.5]
[1770810862136,12.29573706,81.329,81.303,0.5]
[1770810862427,30.73219772,81.348,81.305,0.5]
[1770810862628,3.38449949,81.34,81.311,0.5]
[1770810863332,3.38449949,81.34,81.313,0.5]
[1770810865334,12.29301633,81.347,81.315,0.5]
[1770810865531,12.29301633,81.347,81.317,0.5]
[1770810865832,12.29301633,81.347,81.321,0.5]
[1770810866029,30.72825616,81.359,81.321,0.5]
[1770810866237,3.38449949,81.36,81.321,0.5]
[1770810866238,12.29135426,81.358,81.321,0.5]
[1770810866429,12.29135426,81.358,81.331,0.5]
[1770810866620,12.29022159,81.366,81.333,0.5]
[1770810867217,12.29022159,81.366,81.314,43.04301841]
[1770810867218,12.28772947,81.382,81.341,0.5]
[1770810867414,3.38449949,81.38,81.343,0.5]
[1770810868638,12.28772947,81.382,81.343,0.5]
[1770810868841,3.38449949,81.38,81.343,0.5]
[1770810869022,3.37982187,81.38,81.343,0.5]
[1770810869333,12.28818245,81.379,81.345,0.5]
[1770810870216,0.1,81.42,81.361,0.5]
[1770810870418,3.37982187,81.41,81.371,0.5]
[1770810870623,3.37982187,81.4,81.373,0.5]
[1770810870831,3.37982187,81.38,81.374,29.58]
[1770810871140,5.13032502,81.416,81.374,29.58]
[1770810871141,3.37982187,81.39,81.374,29.58]
[1770810871523,12.28667264,81.389,81.373,29.58]
[1770810874352,12.28545692,81.398,81.374,0.5]
[1770810874640,12.28545692,81.398,81.374,30.08]
[1770810877230,12.28545692,81.398,81.374,91.18]
[1770810877543,12.28545692,81.398,81.376,0.5]
[1770810879244,3.37982187,81.41,81.378,0.5]
[1770810880130,3.37982187,81.4,81.375,29.68]
[1770810881243,3.37982187,81.4,81.376,29.82]
[1770810881244,12.2851632,81.399,81.376,29.82]
[1770810881645,12.2851632,81.399,81.376,30.32]
[1770810882541,12.2851632,81.399,81.377,0.5]
[1770810882846,3.37982187,81.41,81.377,0.5]
[1770810883041,3.37982187,81.41,81.356,30.72901686]
[1770810883042,3.37982187,81.39,81.365,0.5]
[1770810883232,3.37982187,81.39,81.374,29.86]
[1770810883547,3.37982187,81.4,81.374,29.86]
[1770810884240,3.37982187,81.39,81.374,29.86]
[1770810885547,12.2851632,81.399,81.374,30.36]
[1770810886246,12.2851632,81.399,81.374,0.5]
[1770810886550,12.2851632,81.399,81.375,29.9]
[1770810888350,12.2851632,81.399,81.376,61.1]
[1770810890732,12.2851632,81.399,81.376,61.6]
[1770810891552,12.2851632,81.399,81.377,0.5]
[1770810894341,12.2851632,81.399,81.378,61.1]
[1770810895828,12.2851632,81.399,81.379,0.5]
[1770810896132,42.99807122,81.399,81.375,29.9]
[1770810896327,3.37982187,81.39,81.376,30.22]
[1770810896550,3.37982187,81.39,81.369,0.5]
[1770810896754,3.37982187,81.39,81.374,30.24]
[1770810896958,3.37982187,81.38,81.36,30.24]
[1770810897146,3.37982187,81.38,81.357,30.24]
[1770810897352,3.37982187,81.38,81.357,30.74]
[1770810897649,3.37982187,81.38,81.358,0.5]
[1770810898257,12.28818245,81.379,81.358,0.5]
[1770810900661,3.37982187,81.37,81.357,30.24]
[1770810901158,3.37982187,81.37,81.351,30.34]
[1770810901541,3.37982187,81.36,81.351,30.34]
[1770810901740,3.37982187,81.37,81.351,30.34]
[1770810902154,3.37982187,81.37,81.346,0.5]
[1770810902358,3.37982187,81.36,81.34,30.36]
[1770810902562,3.37982187,81.35,81.336,30.38]
[1770810902761,3.37982187,81.35,81.336,30.88]
[1770810902969,12.29120318,81.359,81.337,0.5]
[1770810903744,12.29120318,81.359,81.316,61.1]
[1770810903745,3.37982187,81.35,81.33,0.5]
[1770810906745,12.2927141,81.349,81.33,0.5]
[1770810906944,3.37982187,81.34,81.314,0.5]
[1770810907141,43.02449937,81.349,81.314,0.5]
[1770810907142,3.37982187,81.33,81.314,0.5]
[1770810908360,3.37982187,81.34,81.314,0.5]
[1770810909978,3.37982187,81.33,81.314,0.5]
[1770810911665,12.2942254,81.339,81.314,0.5]
[1770810911855,42.01319463,81.346,81.316,0.5]
[1770810912049,3.37982187,81.34,81.316,0.5]
[1770810912755,3.37982187,81.34,81.317,0.5]
[1770810915170,12.2942254,81.339,81.317,0.5]
[1770810916462,3.37982187,81.35,81.319,0.5]
[1770810916658,3.37982187,81.35,81.321,0.5]
[1770810917569,12.2927141,81.349,81.323,0.5]
[1770810922358,3.37982187,81.34,81.324,30.82]
[1770810924359,12.2942254,81.339,81.324,30.82]
[1770810925084,3.37982187,81.35,81.325,0.5]
[1770810926377,12.2927141,81.349,81.326,0.5]
[1770810927259,12.2927141,81.349,81.328,0.5]
[1770810927659,3.37982187,81.34,81.322,0.5]
[1770810927884,3.37982187,81.34,81.326,31.0]
[1770810928277,12.2927141,81.349,81.327,0.5]
[1770810931389,12.2927141,81.349,81.329,0.5]
[1770810933892,12.2927141,81.349,81.328,31.16]
[1770810934690,3.38264632,81.34,81.328,31.16]
[1770810935764,12.2942254,81.339,81.328,31.16]
[1770810935964,12.2942254,81.339,81.319,0.5]
[1770810936391,12.29289873,81.348,81.319,0.5]
[1770810936591,12.29289873,81.348,81.321,0.5]
[1770810936795,12.29289873,81.348,81.324,0.5]
[1770810937287,30.72754766,81.361,81.324,0.5]
[1770810937494,12.28984367,81.368,81.331,0.5]
[1770810937665,12.28984367,81.368,81.332,12.29528352]
[1770810937873,3.38264632,81.36,81.333,0.5]
[1770810939478,3.38264632,81.35,81.333,0.5]
[1770810939994,3.38264632,81.36,81.334,0.5]
[1770810941091,12.29120318,81.359,81.336,0.5]
[1770810941789,3.38264632,81.35,81.335,61.1]
[1770810943694,12.2927141,81.349,81.335,61.1]
[1770810944074,12.2927141,81.349,81.336,0.5]
[1770810946600,3.38264632,81.36,81.336,0.5]
[1770810946789,43.01445285,81.368,81.336,0.5]
[1770810949477,43.01445285,81.368,81.338,0.5]
[1770810949885,12.29120318,81.359,81.338,0.5]
[1770810951300,43.01445285,81.368,81.338,0.5]
[1770810951607,29.8,81.369,81.34,0.5]
[1770810951782,12.28910238,81.373,81.341,0.5]
[1770810952108,12.28910238,81.373,81.343,0.5]
[1770810952803,12.28818245,81.379,81.345,0.5]
[1770810955907,12.28818245,81.379,81.347,0.5]
[1770810958302,12.28818245,81.379,81.349,0.5]
[1770810958489,12.28818245,81.379,81.35,31.94]
[1770810958694,12.28818245,81.379,81.351,0.5]
[1770810959411,12.28818245,81.379,81.352,12.29226079]
[1770810959614,12.28818245,81.379,81.353,0.5]
[1770810962904,3.38006765,81.37,81.35,31.94]
[1770810963516,3.38006765,81.37,81.35,32.44]
[1770810964310,3.38006765,81.37,81.35,31.94]
[1770810964516,3.38006765,81.37,81.351,0.5]
[1770810967312,12.28964362,81.37,81.351,0.5]
[1770810968016,12.28833345,81.378,81.351,0.5]
[1770810969418,12.28833345,81.378,81.353,0.5]
[1770810976624,3.38006765,81.37,81.353,0.5]
[1770810976923,3.38006765,81.36,81.342,0.5]
[1770810980314,12.29098312,81.361,81.342,0.5]
[1770810980929,12.28978222,81.369,81.344,0.5]
[1770810985832,3.38006765,81.36,81.334,0.5]
[1770810986137,3.38006765,81.36,81.336,0.5]
[1770810987038,12.28984367,81.368,81.336,0.5]
[1770810988027,12.28984367,81.368,81.337,0.5]
[1770810988934,12.29120318,81.359,81.337,0.5]
[1770810989635,12.29120318,81.359,81.339,0.5]
[1770810990638,3.38006765,81.36,81.339,0.5]
[1770810991020,3.38129322,81.36,81.339,0.5]
[1770810991427,43.01392421,81.369,81.339,0.5]
[1770811001551,3.38129322,81.36,81.339,0.5]
[1770811002444,3.38129322,81.36,81.341,0.5]
[1770811003746,12.29120318,81.359,81.34,33.14]
[1770811003932,12.29120318,81.359,81.341,0.5]
[1770811004130,12.29068356,81.363,81.341,0.5]
[1770811006633,43.01392421,81.369,81.341,0.5]
[1770811007037,43.01392421,81.369,81.343,0.5]
[1770811014564,3.38129322,81.35,81.317,0.5]
[1770811014862,3.38129322,81.34,81.319,0.5]
[1770811016453,3.38129322,81.35,81.319,0.5]
[1770811016670,15.6739117,81.35,81.319,0.5]
[1770811016862,15.6739117,81.35,81.321,0.5]
[1770811019245,15.6739117,81.35,81.323,0.5]
[1770811019667,3.38129322,81.34,81.323,0.5]
[1770811019877,15.6739117,81.35,81.323,0.5]
[1770811021173,46.40531919,81.35,81.323,0.5]
[1770811021378,3.38129322,81.34,81.323,0.5]
[1770811022150,43.02402597,81.35,81.323,0.5]
[1770811022472,12.2942254,81.339,81.323,0.5]
[1770811023174,3.38129322,81.33,81.322,18.8]
[1770811023475,12.2942254,81.339,81.312,0.5]
[1770811026359,12.29369719,81.343,81.314,0.5]
[1770811026666,12.29369719,81.343,81.32,3.38129322]
[1770811026860,12.29369719,81.343,81.321,0.5]
[1770811029373,31.02,81.347,81.323,0.5]
[1770811031783,43.43120318,81.359,81.323,0.5]
[1770811031970,43.43120318,81.359,81.325,0.5]
[1770811032671,43.43120318,81.359,81.326,0.5]
[1770811035782,31.14,81.359,81.331,0.5]
[1770811036079,31.2,81.388,81.351,0.5]
[1770811036265,3.38129322,81.39,81.353,0.5]
[1770811036471,3.38129322,81.38,81.353,0.5]
[1770811037477,12.28818245,81.379,81.353,0.5]
[1770811037670,12.28818245,81.379,81.347,0.5]
[1770811038775,3.38129322,81.37,81.347,0.5]